bitfinex/quotes_BTCUSD_20240723
["timestamp","ask_amount","ask_price","bid_price","bid_amount"]
[1721722726507,0.450075,66780.0,66779.0,0.477084]
[1721722729203,0.450075,66780.0,66779.0,0.4471]
[1721722729428,0.82305442,66780.0,66779.0,0.477084]
[1721722730112,0.22407442,66780.0,66779.0,0.477084]
[1721722730347,0.07432942,66780.0,66779.0,0.477084]
[1721722730548,0.52356442,66780.0,66779.0,0.477084]
[1721722730749,0.52356442,66780.0,66779.0,0.478008]
[1721722732356,0.82305442,66780.0,66779.0,0.448024]
[1721722732814,1.40144222,66780.0,66779.0,0.307424]
[1721722733271,0.82305442,66780.0,66779.0,0.369524]
[1721722733483,0.82305442,66780.0,66779.0,0.363524]
[1721722733904,0.82305442,66780.0,66779.0,0.368524]
[1721722734027,0.82305442,66780.0,66779.0,0.363524]
[1721722734435,1.04303271,66780.0,66779.0,0.300424]
[1721722735009,1.04303271,66780.0,66779.0,0.303424]
[1721722735010,1.34252271,66780.0,66779.0,0.303424]
[1721722735122,1.20964442,66780.0,66779.0,0.303424]
[1721722735326,0.91015442,66780.0,66779.0,0.303424]
[1721722736978,0.90915442,66780.0,66779.0,0.300424]
[1721722737534,0.90915442,66780.0,66779.0,0.303424]
[1721722737720,0.90915442,66780.0,66779.0,0.300424]
[1721722738689,0.82205442,66780.0,66779.0,0.303424]
[1721722740761,0.82205442,66780.0,66779.0,0.300424]
[1721722741255,0.82205442,66780.0,66779.0,0.301424]
[1721722741914,0.90915442,66780.0,66779.0,0.301424]
[1721722743634,0.90915442,66780.0,66779.0,0.300424]
[1721722743838,0.90915442,66780.0,66779.0,0.303424]
[1721722744040,1.48744372,66780.0,66779.0,0.303424]
[1721722744244,1.48744372,66780.0,66779.0,0.300424]
[1721722744591,1.48744372,66780.0,66779.0,0.301424]
[1721722744961,1.48744372,66780.0,66779.0,0.300424]
[1721722745164,1.48744372,66780.0,66779.0,0.303424]
[1721722745921,1.35566433,66780.0,66779.0,0.303424]
[1721722746093,1.05617433,66780.0,66779.0,0.303424]
[1721722747000,1.05617433,66780.0,66779.0,0.301424]
[1721722747363,1.35566433,66780.0,66779.0,0.301424]
[1721722747745,1.35566433,66780.0,66779.0,0.300424]
[1721722748085,1.35566433,66780.0,66779.0,0.303424]
[1721722748718,0.96907433,66780.0,66779.0,0.304424]
[1721722750442,1.26856433,66780.0,66779.0,0.304424]
[1721722750648,0.449235,66780.0,66779.0,0.360924]
[1721722750870,0.449235,66780.0,66779.0,0.363924]
[1721722751355,0.449235,66780.0,66779.0,0.360924]
[1721722751555,0.449235,66780.0,66779.0,0.361924]
[1721722751764,0.449235,66780.0,66779.0,0.444724]
[1721722752142,0.449235,66780.0,66779.0,0.447724]
[1721722752348,0.0871,66791.0,66780.0,0.029984]
[1721722752545,0.149735,66785.0,66781.0,0.1456]
[1721722752710,0.299473,66784.0,66781.0,0.1456]
[1721722753049,0.149738,66783.0,66781.0,0.1456]
[1721722753397,0.14974,66782.0,66781.0,0.1456]
[1721722754316,0.14974,66782.0,66781.0,0.1536]
[1721722754621,0.14974,66782.0,66781.0,0.1456]
[1721722755212,0.299473,66784.0,66781.0,0.1556]
[1721722755444,0.14974,66783.0,66781.0,0.1586]
[1721722755561,0.14974,66782.0,66781.0,0.1586]
[1721722755958,0.14974,66782.0,66781.0,0.1556]
[1721722756213,0.14974,66782.0,66781.0,0.1606]
[1721722757128,0.449221,66782.0,66781.0,0.1606]
[1721722757357,0.449221,66782.0,66781.0,0.015]
[1721722757490,0.748702,66782.0,66781.0,0.015]
[1721722757672,0.449221,66782.0,66781.0,0.015]
[1721722758817,0.95160824,66782.0,66781.0,0.015]
[1721722759424,0.835802,66782.0,66781.0,0.015]
[1721722759641,0.748702,66782.0,66781.0,0.015]
[1721722761073,0.835802,66782.0,66781.0,0.015]
[1721722762998,0.748702,66782.0,66781.0,0.015]
[1721722763783,0.749542,66782.0,66781.0,0.015]
[1721722764702,1.049023,66782.0,66781.0,0.015]
[1721722767026,1.33794291,66782.0,66781.0,0.015]
[1721722767373,1.42504291,66782.0,66781.0,0.015]
[1721722769234,1.19604291,66782.0,66781.0,0.015]
[1721722769453,1.19604291,66782.0,66781.0,0.0779]
[1721722769807,0.749542,66782.0,66781.0,0.0779]
[1721722771025,0.749542,66782.0,66781.0,0.015]
[1721722772225,0.826642,66782.0,66781.0,0.015]
[1721722772770,1.126123,66782.0,66781.0,0.015]
[1721722772908,0.826642,66782.0,66781.0,0.015]
[1721722773111,1.27314291,66782.0,66781.0,0.015]
[1721722775628,1.19604291,66782.0,66781.0,0.015]
[1721722776632,0.89656191,66782.0,66781.0,0.015]
[1721722778649,0.749542,66782.0,66781.0,0.0953]
[1721722778820,0.749542,66782.0,66781.0,0.1561]
[1721722779122,0.450061,66782.0,66781.0,0.1561]
[1721722779481,0.749542,66782.0,66781.0,0.1561]
[1721722779682,0.450061,66782.0,66781.0,0.1561]
[1721722785003,0.749542,66782.0,66781.0,0.1561]
[1721722785217,0.450061,66782.0,66781.0,0.1561]
[1721722787764,0.52355042,66782.0,66781.0,0.1561]
[1721722789107,0.82303142,66782.0,66781.0,0.1561]
[1721722789324,0.52355042,66782.0,66781.0,0.1561]
[1721722791948,0.82303142,66782.0,66781.0,0.015]
[1721722792288,0.52355042,66782.0,66781.0,0.015]
[1721722793074,0.82303142,66782.0,66781.0,0.015]
[1721722799241,0.97005133,66782.0,66781.0,0.015]
[1721722799446,1.05325133,66782.0,66781.0,0.015]
[1721722799649,1.35273233,66782.0,66781.0,0.015]
[1721722800167,0.97005133,66782.0,66781.0,0.015]
[1721722800368,0.97005133,66782.0,66781.0,0.01]
[1721722801455,0.82303142,66782.0,66781.0,0.1415]
[1721722802001,0.82603142,66782.0,66781.0,0.1415]
[1721722802206,0.82303142,66782.0,66781.0,0.1415]
[1721722802709,0.82303142,66782.0,66781.0,0.1425]
[1721722802882,0.82303142,66782.0,66781.0,0.1415]
[1721722803408,0.82303142,66782.0,66781.0,0.1475]
[1721722804538,0.82303142,66782.0,66781.0,0.1415]
[1721722804961,0.82303142,66782.0,66781.0,0.1445]
[1721722805794,0.82303142,66782.0,66781.0,0.0783]
[1721722806051,0.82303142,66782.0,66781.0,0.003]
[1721722807074,0.91013142,66782.0,66781.0,0.003]
[1721722807228,0.97313142,66782.0,66781.0,0.003]
[1721722807419,0.91013142,66782.0,66781.0,0.003]
[1721722808249,0.748715,66781.0,66780.0,0.000924]
[1721722809565,0.748715,66781.0,66780.0,0.062024]
[1721722809901,0.748715,66781.0,66780.0,0.066024]
[1721722810704,0.748715,66781.0,66780.0,0.143524]
[1721722810858,0.74837522,66781.0,66780.0,0.143524]
[1721722811487,0.74837522,66781.0,66780.0,0.139524]
[1721722811818,0.74837522,66781.0,66780.0,0.143524]
[1721722812119,0.74837522,66781.0,66780.0,0.139524]
[1721722812419,0.74837522,66781.0,66780.0,0.143524]
[1721722813156,0.07432942,66782.0,66780.0,0.004924]
[1721722813349,0.00084,66782.0,66781.0,0.92029337]
[1721722813585,0.00084,66782.0,66781.0,1.68928928]
[1721722813788,0.00084,66782.0,66781.0,1.68629491]
[1721722813939,0.00084,66782.0,66781.0,1.83325756]
[1721722815180,0.00084,66782.0,66781.0,1.84725756]
[1721722815764,0.00084,66782.0,66781.0,1.70029491]
[1721722815953,0.00084,66782.0,66781.0,1.70829491]
[1721722817671,0.00084,66782.0,66781.0,1.70029491]
[1721722817880,0.00084,66782.0,66781.0,1.71429491]
[1721722818087,0.00084,66782.0,66781.0,2.06378091]
[1721722818289,0.00084,66782.0,66781.0,2.31074356]
[1721722818659,0.00084,66792.0,66791.0,1.269227]
[1721722818787,0.00084,66792.0,66791.0,1.84073559]
[1721722818986,0.00084,66792.0,66791.0,1.79073559]
[1721722819210,0.00084,66792.0,66791.0,2.24017659]
[1721722819416,0.00084,66792.0,66791.0,2.38713924]
[1721722819893,0.00084,66792.0,66791.0,2.40113924]
[1721722820296,0.00084,66792.0,66791.0,2.38810507]
[1721722820493,0.00084,66792.0,66791.0,2.35113924]
[1721722820690,0.00084,66792.0,66791.0,1.86459824]
[1721722820899,0.00084,66792.0,66791.0,1.95169824]
[1721722821162,0.00084,66792.0,66791.0,1.41819459]
[1721722821312,0.00084,66792.0,66791.0,1.43219459]
[1721722821477,0.00084,66792.0,66791.0,1.41819459]
[1721722821674,0.00084,66792.0,66791.0,1.40419459]
[1721722821875,0.00084,66792.0,66791.0,1.41819459]
[1721722822501,0.00084,66792.0,66791.0,1.43219459]
[1721722822958,0.00084,66792.0,66791.0,1.51929459]
[1721722823156,0.00084,66792.0,66791.0,1.66625724]
[1721722823410,0.00084,66792.0,66791.0,1.65225724]
[1721722823602,0.00084,66792.0,66791.0,1.63825724]
[1721722823796,0.00084,66792.0,66791.0,1.65225724]
[1721722824007,0.00084,66792.0,66791.0,1.63730856]
[1721722824310,0.00084,66792.0,66791.0,1.53620856]
[1721722824844,0.00084,66792.0,66791.0,1.55020856]
[1721722825030,0.00084,66792.0,66791.0,1.56420856]
[1721722825359,0.00084,66792.0,66791.0,0.512624]
[1721722825559,0.00084,66792.0,66791.0,0.417624]
[1721722826281,0.00084,66792.0,66791.0,0.567344]
[1721722826697,0.00084,66792.0,66791.0,0.539344]
[1721722826938,0.00084,66792.0,66791.0,1.138226]
[1721722827127,0.00084,66792.0,66791.0,1.81330951]
[1721722827687,0.00084,66792.0,66791.0,1.79930951]
[1721722827892,0.00084,66792.0,66791.0,1.80830951]
[1721722828157,0.00084,66792.0,66791.0,1.82130951]
[1721722828579,0.00084,66792.0,66791.0,1.84930951]
[1721722828733,0.00084,66792.0,66791.0,1.82174951]
[1721722828936,0.00084,66792.0,66791.0,1.83574951]
[1721722829135,0.00084,66792.0,66791.0,1.87174951]
[1721722829339,0.00084,66792.0,66791.0,2.22119051]
[1721722829578,0.00084,66792.0,66791.0,2.18519051]
[1721722829827,0.00084,66792.0,66791.0,1.88574951]
[1721722830030,0.00084,66792.0,66791.0,1.88060546]
[1721722830374,0.00084,66792.0,66791.0,1.89460546]
[1721722830574,0.00084,66792.0,66791.0,1.94460546]
[1721722830774,0.00084,66792.0,66791.0,2.23004646]
[1721722831213,0.00084,66792.0,66791.0,2.25804646]
[1721722831424,0.00084,66792.0,66791.0,2.30804646]
[1721722832094,0.00084,66792.0,66791.0,1.95860546]
[1721722832339,0.00084,66792.0,66791.0,1.13704491]
[1721722832535,0.00084,66792.0,66791.0,0.967025]
[1721722832753,0.150558,66792.0,66791.0,0.379864]
[1721722832906,0.00084,66792.0,66791.0,0.371424]
[1721722833108,0.150558,66792.0,66791.0,0.371424]
[1721722833307,0.00084,66792.0,66791.0,0.357424]
[1721722833528,0.00084,66792.0,66791.0,0.371424]
[1721722833952,0.00084,66792.0,66791.0,1.46967071]
[1721722834131,0.00084,66792.0,66791.0,1.45567071]
[1721722834632,0.00084,66792.0,66791.0,1.46167071]
[1721722834842,0.00084,66792.0,66791.0,1.15622971]
[1721722835041,0.00084,66792.0,66791.0,1.12822971]
[1721722835244,0.00084,66792.0,66791.0,1.42767071]
[1721722835547,0.00084,66792.0,66791.0,1.44167071]
[1721722836202,0.00084,66792.0,66791.0,1.52867071]
[1721722836382,0.00084,66792.0,66791.0,1.85611171]
[1721722836667,0.00084,66792.0,66791.0,1.86411171]
[1721722837932,0.00084,66792.0,66791.0,1.87811171]
[1721722838090,0.00084,66792.0,66791.0,1.86411171]
[1721722838302,0.00084,66792.0,66791.0,2.16355271]
[1721722838492,0.00084,66792.0,66791.0,2.22755271]
[1721722839505,0.00084,66792.0,66791.0,2.21355271]
[1721722839869,0.00084,66792.0,66791.0,2.22755271]
[1721722843284,0.00084,66792.0,66791.0,2.23630263]
[1721722848682,0.00084,66792.0,66791.0,2.33630263]
[1721722851391,0.00844,66798.0,66797.0,0.179984]
[1721722851594,0.00844,66798.0,66797.0,2.32262782]
[1721722851738,0.00844,66798.0,66797.0,3.58637691]
[1721722852085,0.00844,66798.0,66797.0,4.18520491]
[1721722852330,0.00844,66798.0,66797.0,3.88579091]
[1721722852450,0.00844,66798.0,66797.0,4.03796077]
[1721722852643,0.00844,66798.0,66797.0,3.93796077]
[1721722852843,0.00844,66798.0,66797.0,3.73854677]
[1721722853274,0.00844,66798.0,66797.0,3.75254677]
[1721722853875,0.00844,66798.0,66797.0,3.65254677]
[1721722854075,0.00844,66798.0,66797.0,3.29687691]
[1721722854848,0.00844,66798.0,66797.0,2.94746291]
[1721722855522,0.00844,66798.0,66797.0,2.99746291]
[1721722857867,0.00844,66798.0,66797.0,2.94746291]
[1721722858071,0.00844,66798.0,66797.0,3.01932556]
[1721722858396,0.00844,66798.0,66797.0,2.95782556]
[1721722858696,0.00844,66798.0,66797.0,1.37594891]
[1721722859354,0.15064,66798.0,66797.0,1.27594891]
[1721722859981,0.15064,66798.0,66797.0,0.67712091]
[1721722860212,0.15064,66798.0,66797.0,0.65412091]
[1721722860415,0.300345,66798.0,66797.0,0.357394]
[1721722860582,0.599755,66798.0,66797.0,0.357394]
[1721722860798,0.899165,66798.0,66797.0,0.32741]
[1721722861103,0.899165,66798.0,66797.0,0.357394]
[1721722861331,0.899165,66798.0,66797.0,0.343394]
[1721722861888,0.899165,66798.0,66797.0,0.356394]
[1721722862021,0.899165,66798.0,66797.0,0.342394]
[1721722862386,0.899165,66798.0,66797.0,0.329394]
[1721722862906,1.3186314,66798.0,66797.0,0.29941]
[1721722863271,1.198575,66798.0,66797.0,0.29941]
[1721722863835,1.64500491,66798.0,66797.0,0.30341]
[1721722864028,1.34559491,66798.0,66797.0,0.30341]
[1721722864517,1.39559491,66798.0,66797.0,0.30341]
[1721722864664,1.542356,66798.0,66797.0,0.30341]
[1721722864875,1.69500491,66798.0,66797.0,0.30341]
[1721722865341,1.69500491,66798.0,66797.0,0.29941]
[1721722865732,1.69500491,66798.0,66797.0,0.30341]
[1721722865943,1.69500491,66798.0,66797.0,0.29941]
[1721722866246,1.69500491,66798.0,66797.0,0.30041]
[1721722866458,1.69500491,66798.0,66797.0,0.30141]
[1721722866459,1.86502091,66798.0,66797.0,0.30141]
[1721722866661,2.01198356,66798.0,66797.0,0.30141]
[1721722867000,2.02104498,66798.0,66797.0,0.30141]
[1721722867209,1.82408233,66798.0,66797.0,0.30141]
[1721722868268,1.82408233,66798.0,66797.0,0.30041]
[1721722868468,1.82408233,66798.0,66797.0,0.29941]
[1721722868668,1.82408233,66798.0,66797.0,0.30041]
[1721722868935,1.82508233,66798.0,66797.0,0.30141]
[1721722869337,1.82408233,66798.0,66797.0,0.30041]
[1721722869631,1.82508233,66798.0,66797.0,0.30141]
[1721722869791,1.87508233,66798.0,66797.0,0.30141]
[1721722870638,1.82508233,66798.0,66797.0,0.30141]
[1721722873120,1.82508233,66798.0,66797.0,0.30041]
[1721722873320,1.82408233,66798.0,66797.0,0.30041]
[1721722873642,1.82408233,66798.0,66797.0,0.30141]
[1721722874229,1.77408233,66798.0,66797.0,0.30141]
[1721722874900,1.77408233,66798.0,66797.0,0.30041]
[1721722875010,1.45465633,66798.0,66797.0,0.30141]
[1721722875211,1.30763642,66798.0,66797.0,0.30141]
[1721722875456,1.30763642,66798.0,66797.0,0.29941]
[1721722875659,1.30763642,66798.0,66797.0,0.30141]
[1721722876175,1.30763642,66798.0,66797.0,0.29941]
[1721722876384,1.30763642,66798.0,66797.0,0.30041]
[1721722876839,0.699755,66798.0,66797.0,0.30041]
[1721722877016,0.158145,66798.0,66797.0,0.30041]
[1721722877217,0.00844,66798.0,66797.0,0.330394]
[1721722877628,0.158145,66798.0,66797.0,0.330394]
[1721722877828,0.457555,66798.0,66797.0,0.330394]
[1721722878585,0.00844,66798.0,66797.0,0.330394]
[1721722879862,0.158145,66798.0,66797.0,0.330394]
[1721722880439,0.00844,66798.0,66797.0,0.330394]
[1721722880863,0.158145,66798.0,66797.0,0.330394]
[1721722881733,0.457555,66798.0,66797.0,0.30041]
[1721722881934,0.238045,66798.0,66797.0,0.330394]
[1721722882367,0.537455,66798.0,66797.0,0.30041]
[1721722882782,0.537455,66798.0,66797.0,0.330394]
[1721722884075,0.537455,66798.0,66797.0,0.30041]
[1721722886400,0.537455,66798.0,66797.0,0.330394]
[1721722886643,0.457555,66798.0,66797.0,0.330394]
[1721722887581,0.457555,66798.0,66797.0,0.329074]
[1721722890727,0.457555,66798.0,66797.0,0.29909]
[1721722891080,0.457555,66798.0,66797.0,0.329074]
[1721722891741,0.00844,66798.0,66797.0,0.329074]
[1721722892527,0.00844,66798.0,66797.0,0.328074]
[1721722892850,0.158145,66798.0,66797.0,0.336074]
[1721722893185,0.158145,66798.0,66797.0,0.328074]
[1721722893414,0.158145,66798.0,66797.0,0.339074]
[1721722893627,0.15796482,66798.0,66797.0,0.343074]
[1721722894048,0.00825982,66798.0,66797.0,0.339074]
[1721722894442,0.00825982,66798.0,66797.0,0.345074]
[1721722895045,0.00825982,66798.0,66797.0,0.4390258]
[1721722895228,0.00825982,66798.0,66797.0,0.4280258]
[1721722895644,0.15796482,66798.0,66797.0,0.341074]
[1721722895885,0.15796482,66798.0,66797.0,0.349074]
[1721722896533,0.60027482,66798.0,66797.0,0.349074]
[1721722896945,0.89968482,66798.0,66797.0,0.320014]
[1721722897155,1.3192023,66798.0,66797.0,0.320014]
[1721722897582,1.3192023,66798.0,66797.0,0.312014]
[1721722898603,1.19909482,66798.0,66797.0,0.312014]
[1721722899168,1.19909482,66798.0,66797.0,0.307014]
[1721722899384,1.19909482,66798.0,66797.0,0.320014]
[1721722899601,1.19909482,66798.0,66797.0,0.312014]
[1721722899815,1.19909482,66798.0,66797.0,0.301014]
[1721722899938,1.19909482,66798.0,66797.0,0.307014]
[1721722903272,1.19909482,66798.0,66797.0,0.299014]
[1721722903508,1.19909482,66798.0,66797.0,0.301014]
[1721722903730,1.19909482,66798.0,66797.0,0.307014]
[1721722903957,1.20799028,66798.0,66797.0,0.305014]
[1721722904344,1.20799028,66798.0,66797.0,0.307014]
[1721722904543,1.19909482,66798.0,66797.0,0.307014]
[1721722905263,1.19909482,66798.0,66797.0,0.313014]
[1721722905593,1.19909482,66798.0,66797.0,0.301014]
[1721722905793,1.19909482,66798.0,66797.0,0.307014]
[1721722906268,1.19909482,66798.0,66797.0,0.305014]
[1721722906676,1.19909482,66798.0,66797.0,0.307014]
[1721722911726,1.19909482,66798.0,66797.0,0.301014]
[1721722911926,1.20009482,66798.0,66797.0,0.301014]
[1721722912128,1.20009482,66798.0,66797.0,0.299014]
[1721722912355,1.34611473,66798.0,66797.0,0.299014]
[1721722912511,1.34811473,66798.0,66797.0,0.299014]
[1721722913058,1.34711473,66798.0,66797.0,0.299014]
[1721722913247,1.34711473,66798.0,66797.0,0.2993229]
[1721722913576,1.34811473,66798.0,66797.0,0.2993229]
[1721722913878,1.34711473,66798.0,66797.0,0.2993229]
[1721722914220,1.43511473,66798.0,66797.0,0.2993229]
[1721722914875,1.43411473,66798.0,66797.0,0.2993229]
[1721722915072,1.43511473,66798.0,66797.0,0.2993229]
[1721722916112,1.43411473,66798.0,66797.0,0.2993229]
[1721722916444,1.43511473,66798.0,66797.0,0.2993229]
[1721722916952,1.43411473,66798.0,66797.0,0.2993229]
[1721722917147,1.43511473,66798.0,66797.0,0.2993229]
[1721722917643,1.43411473,66798.0,66797.0,0.2993229]
[1721722918003,1.43511473,66798.0,66797.0,0.2993229]
[1721722919361,1.58207738,66798.0,66797.0,0.2993229]
[1721722919791,1.48511473,66798.0,66797.0,0.2993229]
[1721722919921,1.43511473,66798.0,66797.0,0.2993229]
[1721722920549,1.90454073,66798.0,66797.0,0.2993229]
[1721722923919,1.85454073,66798.0,66797.0,0.2993229]
[1721722926246,1.90454073,66798.0,66797.0,0.2993229]
[1721722926952,1.85454073,66798.0,66797.0,0.2993229]
[1721722927272,1.53511473,66798.0,66797.0,0.2993229]
[1721722928731,1.68207738,66798.0,66797.0,0.2993229]
[1721722929988,1.53511473,66798.0,66797.0,0.2993229]
[1721722930225,1.60513073,66798.0,66797.0,0.2993229]
[1721722930597,1.90454073,66798.0,66797.0,0.2993229]
[1721722930922,1.60513073,66798.0,66797.0,0.2993229]
[1721722931829,1.89854073,66798.0,66797.0,0.2993229]
[1721722933774,1.84854073,66798.0,66797.0,0.2993229]
[1721722934761,1.89854073,66798.0,66797.0,0.2993229]
[1721722935063,1.54913073,66798.0,66797.0,0.2993229]
[1721722937217,1.38621473,66798.0,66797.0,0.2993229]
[1721722937422,0.85278482,66798.0,66797.0,0.2993229]
[1721722937656,0.15396482,66798.0,66797.0,0.4710069]
[1721722937781,0.00425982,66798.0,66797.0,0.4710069]
[1721722937987,0.15396482,66798.0,66797.0,0.4710069]
[1721722938370,0.45237482,66798.0,66797.0,0.4710069]
[1721722938771,0.75178482,66798.0,66797.0,0.4430229]
[1721722939183,0.75078482,66798.0,66797.0,0.4410229]
[1721722939384,0.75078482,66798.0,66797.0,0.4470229]
[1721722939613,1.05019482,66798.0,66797.0,0.3083229]
[1721722939771,1.05019482,66798.0,66797.0,0.3023229]
[1721722940190,1.05019482,66798.0,66797.0,0.3093229]
[1721722940430,1.05019482,66798.0,66797.0,0.3023229]
[1721722940754,1.05119482,66798.0,66797.0,0.3023229]
[1721722941085,1.05019482,66798.0,66797.0,0.3023229]
[1721722941501,1.05019482,66798.0,66797.0,0.2993229]
[1721722941897,1.05119482,66798.0,66797.0,0.2993229]
[1721722942326,1.32663308,66798.0,66797.0,0.2993229]
[1721722942525,1.32763308,66798.0,66797.0,0.2993229]
[1721722942723,1.32863308,66798.0,66797.0,0.2993229]
[1721722942900,1.19921473,66798.0,66797.0,0.2993229]
[1721722943100,1.19821473,66798.0,66797.0,0.2993229]
[1721722943309,1.19721473,66798.0,66797.0,0.2993229]
[1721722943704,1.19821473,66798.0,66797.0,0.2993229]
[1721722943903,1.19721473,66798.0,66797.0,0.2993229]
[1721722944194,1.19721473,66798.0,66797.0,0.3625229]
[1721722944328,1.19821473,66798.0,66797.0,0.3625229]
[1721722944525,1.19921473,66798.0,66797.0,0.3625229]
[1721722944749,1.19921473,66798.0,66797.0,0.2993229]
[1721722945151,1.19821473,66798.0,66797.0,0.2993229]
[1721722945533,1.19921473,66798.0,66797.0,0.2993229]
[1721722948413,1.19821473,66798.0,66797.0,0.2993229]
[1721722948652,1.19921473,66798.0,66797.0,0.2993229]
[1721722949018,1.19821473,66798.0,66797.0,0.2993229]
[1721722949761,1.19921473,66798.0,66797.0,0.2993229]
[1721722949962,1.36519338,66798.0,66797.0,0.2993229]
[1721722950190,1.87540338,66798.0,66797.0,0.2993229]
[1721722950403,1.82640338,66798.0,66797.0,0.2993229]
[1721722950556,1.87640338,66798.0,66797.0,0.2993229]
[1721722950767,1.87540338,66798.0,66797.0,0.2993229]
[1721722950960,1.72844073,66798.0,66797.0,0.2993229]
[1721722951164,1.72944073,66798.0,66797.0,0.2993229]
[1721722951763,1.67844073,66798.0,66797.0,0.2993229]
[1721722951986,1.31923073,66798.0,66797.0,0.2993229]
[1721722952211,1.32023073,66798.0,66797.0,0.2993229]
[1721722952370,1.31823073,66798.0,66797.0,0.2993229]
[1721722952577,1.31923073,66798.0,66797.0,0.2993229]
[1721722954737,1.29921473,66798.0,66797.0,0.2993229]
[1721722955385,1.31923073,66798.0,66797.0,0.2993229]
[1721722955600,1.29921473,66798.0,66797.0,0.2993229]
[1721722955797,0.85278482,66798.0,66797.0,0.2993229]
[1721722956097,0.85278482,66798.0,66797.0,0.3647229]
[1721722956838,0.85178482,66798.0,66797.0,0.3647229]
[1721722957040,1.15119482,66798.0,66797.0,0.3647229]
[1721722957298,1.15119482,66798.0,66797.0,0.2993229]
[1721722957508,1.15019482,66798.0,66797.0,0.2993229]
[1721722957866,1.15519482,66798.0,66797.0,0.2993229]
[1721722958126,1.29116317,66798.0,66797.0,0.2993229]
[1721722958334,1.28616317,66798.0,66797.0,0.2993229]
[1721722958760,1.29016317,66798.0,66797.0,0.2993229]
[1721722959202,1.15119482,66798.0,66797.0,0.2993229]
[1721722959408,1.15419482,66798.0,66797.0,0.2993229]
[1721722959662,1.15319482,66798.0,66797.0,0.2993229]
[1721722960635,1.15019482,66798.0,66797.0,0.2993229]
[1721722961027,1.15319482,66798.0,66797.0,0.2993229]
[1721722961465,1.15019482,66798.0,66797.0,0.2993229]
[1721722961666,1.15319482,66798.0,66797.0,0.2993229]
[1721722964194,1.24019482,66798.0,66797.0,0.2993229]
[1721722965109,1.23719482,66798.0,66797.0,0.2993229]
[1721722965649,1.24019482,66798.0,66797.0,0.2993229]
[1721722968391,1.38721473,66798.0,66797.0,0.2993229]
[1721722968607,1.82643507,66798.0,66797.0,0.2993229]
[1721722968810,1.73662473,66798.0,66797.0,0.2993229]
[1721722969033,1.68662473,66798.0,66797.0,0.2993229]
[1721722969998,1.38721473,66798.0,66797.0,0.2993229]
[1721722972331,1.43721473,66798.0,66797.0,0.2993229]
[1721722972468,1.38721473,66798.0,66797.0,0.2993229]
[1721722975039,1.38721473,66798.0,66797.0,0.3609229]
[1721722976517,1.30021473,66798.0,66797.0,0.3609229]
[1721722979778,1.30021473,66798.0,66797.0,0.2993229]
[1721722983271,1.43832667,66798.0,66797.0,0.2993229]
[1721722983784,1.30021473,66798.0,66797.0,0.2993229]
[1721722983983,1.37571473,66798.0,66797.0,0.2993229]
[1721722984434,1.30021473,66798.0,66797.0,0.2993229]
[1721722987006,1.64962473,66798.0,66797.0,0.2993229]
[1721722987120,1.73544073,66798.0,66797.0,0.2993229]
[1721722987320,2.19640338,66798.0,66797.0,0.2993229]
[1721722987841,2.19340338,66798.0,66797.0,0.2993229]
[1721722988278,2.15040338,66798.0,66797.0,0.3013229]
[1721722990528,2.10040338,66798.0,66797.0,0.3013229]
[1721722990732,2.15040338,66798.0,66797.0,0.3013229]
[1721722991608,1.60362473,66798.0,66797.0,0.3013229]
[1721722991744,0.85778482,66798.0,66797.0,0.3013229]
[1721722991953,0.85778482,66798.0,66797.0,0.4421229]
[1721722992642,0.85578482,66798.0,66797.0,0.4411229]
[1721722993045,0.85778482,66798.0,66797.0,0.4421229]
[1721722993877,0.00925982,66798.0,66797.0,0.4421229]
[1721722994075,0.45337482,66798.0,66797.0,0.4411229]
[1721722994604,0.01025982,66798.0,66797.0,0.4411229]
[1721722994822,0.15996482,66798.0,66797.0,0.4411229]
[1721722995014,0.15196482,66798.0,66797.0,0.4401229]
[1721722995355,0.15496482,66798.0,66797.0,0.4401229]
[1721722995721,0.55437482,66798.0,66797.0,0.4401229]
[1721722998899,0.25496482,66798.0,66797.0,0.4401229]
[1721722999286,0.25496482,66798.0,66797.0,0.4701069]
[1721723002065,0.55437482,66798.0,66797.0,0.4701069]
[1721723005066,0.25496482,66798.0,66797.0,0.4701069]
[1721723007467,0.55437482,66798.0,66797.0,0.4701069]
[1721723007872,0.10525982,66798.0,66797.0,0.4701069]
[1721723008079,0.00525982,66798.0,66797.0,0.4701069]
[1721723008914,0.15496482,66798.0,66797.0,0.4701069]
[1721723009114,0.25496482,66798.0,66797.0,0.4701069]
[1721723010093,0.00525982,66798.0,66797.0,0.4701069]
[1721723010296,0.00525982,66798.0,66797.0,0.8288163]
[1721723010446,0.00525982,66798.0,66797.0,1.4276443]
[1721723010947,0.00225982,66798.0,66797.0,1.1282303]
[1721723011314,0.00525982,66798.0,66797.0,1.06624781]
[1721723011714,0.00525982,66798.0,66797.0,0.4701069]
[1721723011938,0.00225982,66798.0,66797.0,0.4701069]
[1721723012250,0.00325982,66798.0,66797.0,0.4841069]
[1721723012771,0.00325982,66798.0,66797.0,0.4981069]
[1721723013244,0.00325982,66798.0,66797.0,0.4841069]
[1721723013953,0.00225982,66798.0,66797.0,0.4701069]
[1721723014312,0.00325982,66798.0,66797.0,0.4811069]
[1721723014722,0.00225982,66798.0,66797.0,0.4701069]
[1721723015016,0.00325982,66798.0,66797.0,0.4841069]
[1721723015213,0.00325982,66798.0,66797.0,0.4981069]
[1721723016162,0.00325982,66798.0,66797.0,0.6478139]
[1721723020135,0.00325982,66798.0,66797.0,0.4981069]
[1721723023097,0.45237482,66798.0,66797.0,0.4981069]
[1721723023216,0.75178482,66798.0,66797.0,0.3573069]
[1721723023820,0.75178482,66798.0,66797.0,0.3273229]
[1721723024033,0.75178482,66798.0,66797.0,0.3573069]
[1721723024240,0.75078482,66798.0,66797.0,0.3433069]
[1721723024642,0.75178482,66798.0,66797.0,0.3513069]
[1721723025179,0.75078482,66798.0,66797.0,0.3133229]
[1721723025383,1.05019482,66798.0,66797.0,0.3133229]
[1721723025588,1.05119482,66798.0,66797.0,0.3213229]
[1721723025740,1.05119482,66798.0,66797.0,0.3073229]
[1721723025947,1.05119482,66798.0,66797.0,0.3193229]
[1721723026450,1.19819482,66798.0,66797.0,0.3073229]
[1721723026649,1.19819482,66798.0,66797.0,0.3193229]
[1721723027547,1.19819482,66798.0,66797.0,0.3073229]
[1721723028118,1.19719482,66798.0,66797.0,0.2993229]